[Event "Championnat du monde jeunes U10F"]
[Date "2024.11.26"]
[White "Rekhviashvili, Mariam"]
[Black "Yunker, Alisa Genrietta"]
[WhiteElo "1610"]
[BlackElo "1872"]
[Round "11.5"]
[Result "0-1"]
[TimeControl "5400+30"]

1. e4 {[%clk 1:29:51]} 1... e5 {[%clk 1:30:55]} 2. Nf3 {[%clk 1:30:12]} 2... Nc6
{[%clk 1:31:21]} 3. Bb5 {[%clk 1:30:31]} 3... a6 {[%clk 1:31:47]} 4. Bxc6 {[%clk
1:30:55]} 4... dxc6 {[%clk 1:32:16]} 5. O-O {[%clk 1:31:14]} 5... Qf6 {[%clk
1:31:54]} 6. d3 {[%clk 1:28:28]} 6... Bg4 {[%clk 1:22:25]} 7. Nbd2 {[%clk
1:25:59]} 7... Bd6 {[%clk 1:20:11]} 8. h3 {[%clk 1:22:43]} 8... h5 {[%clk
1:09:24]} 9. Re1 {[%clk 1:19:28]} 9... Ne7 {[%clk 1:02:31]} 10. d4 {[%clk
1:03:33]} 10... Bxf3 {[%clk 0:54:51]} 11. Nxf3 {[%clk 1:01:45]} 11... O-O-O
{[%clk 0:54:38]} 12. Bg5 {[%clk 0:57:50]} 12... Qe6 {[%clk 0:51:56]} 13. Bxe7
{[%clk 0:54:21]} 13... Qxe7 {[%clk 0:51:31]} 14. c3 {[%clk 0:52:13]} 14... g5
{[%clk 0:51:01]} 15. Qe2 {[%clk 0:47:36]} 15... f6 {[%clk 0:50:04]} 16. Nd2
{[%clk 0:30:54]} 16... exd4 {[%clk 0:49:24]} 17. cxd4 {[%clk 0:31:05]} 17... Bb4
{[%clk 0:49:50]} 18. a3 {[%clk 0:30:31]} 18... Ba5 {[%clk 0:47:42]} 19. b4
{[%clk 0:24:15]} 19... Bb6 {[%clk 0:48:10]} 20. Nb3 {[%clk 0:24:16]} 20... Bxd4
{[%clk 0:48:13]} 21. Nxd4 {[%clk 0:24:29]} 21... Rxd4 {[%clk 0:48:42]} 22. Qe3
{[%clk 0:24:35]} 22... Qe5 {[%clk 0:48:34]} 23. Rac1 {[%clk 0:23:42]} 23... Re8
{[%clk 0:45:49]} 24. f3 {[%clk 0:20:59]} 24... Qd6 {[%clk 0:45:56]} 25. Qf2
{[%clk 0:19:04]} 25... h4 {[%clk 0:45:48]} 26. Qf1 {[%clk 0:16:46]} 26... Rd2
{[%clk 0:45:19]} 27. Red1 {[%clk 0:16:11]} 27... Rd8 {[%clk 0:45:17]} 28. Rxd2
{[%clk 0:15:21]} 28... Qxd2 {[%clk 0:45:45]} 29. Qe1 {[%clk 0:12:41]} 29... Qd4+
{[%clk 0:44:57]} 30. Kh1 {[%clk 0:09:53]} 30... Qd3 {[%clk 0:44:27]} 31. Ra1
{[%clk 0:08:47]} 31... Qc2 {[%clk 0:43:38]} 32. Qc1 {[%clk 0:08:14]} 32... Qxc1+
{[%clk 0:43:45]} 33. Rxc1 {[%clk 0:08:39]} 33... Rd3 {[%clk 0:44:12]} 34. Ra1
{[%clk 0:08:59]} 34... Kd7 {[%clk 0:44:36]} 35. Kg1 {[%clk 0:09:23]} 35... Kd6
{[%clk 0:45:00]} 36. Ra2 {[%clk 0:09:49]} 36... b6 {[%clk 0:44:52]} 37. Kf2
{[%clk 0:10:05]} 37... c5 {[%clk 0:45:13]} 38. Ke2 {[%clk 0:10:14]} 38... Rb3
{[%clk 0:45:17]} 39. bxc5+ {[%clk 0:10:10]} 39... Kxc5 {[%clk 0:45:24]} 40. Kd2
{[%clk 0:10:24]} 40... Kd4 {[%clk 0:45:45]} 41. Kc2 {[%clk 0:10:25]} 41... Rc3+
{[%clk 0:46:09]} 42. Kd2 {[%clk 0:10:47]} 42... c5 {[%clk 0:46:33]} 43. Ke2
{[%clk 0:10:58]} 43... Re3+ {[%clk 0:46:51]} 44. Kf2 {[%clk 0:10:49]} 44... c4
{[%clk 0:47:03]} 45. a4 {[%clk 0:11:07]} 45... c3 {[%clk 0:47:21]} 46. a5 {[%clk
0:10:21]} 46... b5 {[%clk 0:47:50]} 47. Ra1 {[%clk 0:10:27]} 47... Rd3 {[%clk
0:48:15]} 48. Ke1 {[%clk 0:10:33]} 48... c2 {[%clk 0:48:32]} 49. Ke2 {[%clk
0:10:36]} 49... b4 {[%clk 0:48:55]} 50. Rc1 {[%clk 0:10:29]} 50... b3 {[%clk
0:49:18]} 51. Ra1 {[%clk 0:10:56]} 51... Kc3 {[%clk 0:49:42]} 52. Rf1 {[%clk
0:10:48]} 52... b2 {[%clk 0:50:07]} 0-1

[Variant "Standard"]
[Site "Europe Echecs"]

[Event "Championnat du monde jeunes U10F"]
[Date "2024.11.26"]
[White "Nandinjiguur, Chinzorig"]
[Black "Sholpanbek, Zhansaya"]
[WhiteElo "1807"]
[BlackElo "1657"]
[Round "11.6"]
[Result "0-1"]
[TimeControl "5400+30"]

1. d4 {[%clk 1:27:16]} 1... Nf6 {[%clk 1:30:38]} 2. c4 {[%clk 1:27:28]} 2... g6
{[%clk 1:30:30]} 3. Nc3 {[%clk 1:27:39]} 3... Bg7 {[%clk 1:30:52]} 4. e4 {[%clk
1:27:55]} 4... d6 {[%clk 1:30:56]} 5. Nf3 {[%clk 1:28:14]} 5... O-O {[%clk
1:30:54]} 6. Be2 {[%clk 1:28:16]} 6... Nbd7 {[%clk 1:30:54]} 7. O-O {[%clk
1:27:44]} 7... e5 {[%clk 1:30:53]} 8. Be3 {[%clk 1:27:39]} 8... Qe7 {[%clk
1:26:44]} 9. Qc2 {[%clk 1:27:34]} 9... Re8 {[%clk 1:25:18]} 10. d5 {[%clk
1:27:02]} 10... a5 {[%clk 1:25:08]} 11. a3 {[%clk 1:23:48]} 11... Nc5 {[%clk
1:23:39]} 12. b4 {[%clk 1:21:22]} 12... Na6 {[%clk 1:23:46]} 13. Qb3 {[%clk
1:19:17]} 13... Ng4 {[%clk 1:21:16]} 14. Bg5 {[%clk 1:18:11]} 14... f6 {[%clk
1:21:37]} 15. Bh4 {[%clk 1:11:16]} 15... g5 {[%clk 1:21:54]} 16. Bg3 {[%clk
1:08:20]} 16... f5 {[%clk 1:15:08]} 17. exf5 {[%clk 1:04:58]} 17... Bxf5 {[%clk
1:14:50]} 18. h3 {[%clk 1:01:35]} 18... Nh6 {[%clk 1:14:56]} 19. Nh2 {[%clk
0:58:13]} 19... Bg6 {[%clk 1:14:16]} 20. f3 {[%clk 0:43:21]} 20... Nf5 {[%clk
1:13:34]} 21. Ne4 {[%clk 0:40:16]} 21... Nd4 {[%clk 1:11:35]} 22. Qd1 {[%clk
0:32:05]} 22... axb4 {[%clk 1:09:10]} 23. axb4 {[%clk 0:28:25]} 23... Nxb4
{[%clk 1:09:27]} 24. Rb1 {[%clk 0:28:07]} 24... Ra2 {[%clk 1:07:32]} 25. Rf2
{[%clk 0:24:58]} 25... c5 {[%clk 0:55:46]} 26. Bf1 {[%clk 0:23:17]} 26... Ra3
{[%clk 0:55:46]} 27. Qc1 {[%clk 0:22:58]} 27... Bxe4 {[%clk 0:55:14]} 28. fxe4
{[%clk 0:19:08]} 28... Rxg3 {[%clk 0:55:37]} 29. Ng4 {[%clk 0:16:34]} 29... h5
{[%clk 0:54:24]} 30. Ne3 {[%clk 0:14:11]} 30... Rf8 {[%clk 0:54:01]} 31. Rbb2
{[%clk 0:09:32]} 31... Rf4 {[%clk 0:52:56]} 32. Kh2 {[%clk 0:08:24]} 32... h4
{[%clk 0:52:01]} 33. Nf5 {[%clk 0:06:53]} 33... Nxf5 {[%clk 0:52:23]} 34. exf5
{[%clk 0:07:17]} 34... e4 {[%clk 0:51:40]} 35. f6 {[%clk 0:06:24]} 35... Qxf6
{[%clk 0:50:54]} 36. Rxf4 {[%clk 0:06:39]} 36... gxf4 {[%clk 0:51:10]} 37. Rf2
{[%clk 0:07:02]} 37... e3 {[%clk 0:48:45]} 38. Re2 {[%clk 0:06:58]} 38... Qa1
{[%clk 0:46:03]} 39. Qxa1 {[%clk 0:06:57]} 39... Bxa1 {[%clk 0:46:12]} 40. Re1
{[%clk 0:07:15]} 40... Bd4 {[%clk 0:46:34]} 41. Be2 {[%clk 0:07:39]} 41... Rg7
{[%clk 0:46:40]} 42. Rf1 {[%clk 0:07:55]} 42... Be5 {[%clk 0:47:02]} 43. Kh1
{[%clk 0:08:03]} 43... Rd7 {[%clk 0:46:49]} 44. Bg4 {[%clk 0:08:25]} 44... Rd8
{[%clk 0:47:13]} 45. Be6+ {[%clk 0:08:39]} 45... Kg7 {[%clk 0:47:39]} 46. Bg4
{[%clk 0:08:37]} 46... Ra8 {[%clk 0:47:59]} 47. Kg1 {[%clk 0:08:57]} 47... Ra2
{[%clk 0:48:16]} 48. Re1 {[%clk 0:09:19]} 48... Nd3 {[%clk 0:47:04]} 49. Re2
{[%clk 0:09:17]} 49... Ra1+ {[%clk 0:47:28]} 50. Kh2 {[%clk 0:09:36]} 50... f3+
{[%clk 0:47:51]} 51. g3 {[%clk 0:09:56]} 51... hxg3# {[%clk 0:48:09]} 0-1

[Variant "Standard"]
[Site "Europe Echecs"]

[Event "Championnat du monde jeunes U10F"]
[Date "2024.11.26"]
[White "Zhumambayeva Aliya"]
[Black "Bakhshi, Rana"]
[WhiteElo "1607"]
[BlackElo "1727"]
[Round "11.7"]
[Result "1-0"]
[TimeControl "5400+30"]

1. e4 {[%clk 1:30:59]} 1... c5 {[%clk 1:30:27]} 2. Nf3 {[%clk 1:31:23]} 2... d6
{[%clk 1:29:55]} 3. Bb5+ {[%clk 1:31:49]} 3... Bd7 {[%clk 1:29:24]} 4. Bxd7+
{[%clk 1:32:05]} 4... Qxd7 {[%clk 1:28:46]} 5. c4 {[%clk 1:32:24]} 5... e5
{[%clk 1:28:16]} 6. Nc3 {[%clk 1:32:36]} 6... Nc6 {[%clk 1:27:24]} 7. d3 {[%clk
1:32:55]} 7... Be7 {[%clk 1:26:26]} 8. O-O {[%clk 1:32:54]} 8... f5 {[%clk
1:23:04]} 9. exf5 {[%clk 1:32:10]} 9... Qxf5 {[%clk 1:23:11]} 10. Nd5 {[%clk
1:32:20]} 10... Bd8 {[%clk 1:22:51]} 11. Qb3 {[%clk 1:23:13]} 11... Rb8 {[%clk
1:16:58]} 12. Nd2 {[%clk 1:22:26]} 12... Nf6 {[%clk 1:12:40]} 13. Nxf6+ {[%clk
1:22:22]} 13... gxf6 {[%clk 1:06:57]} 14. Ne4 {[%clk 1:20:56]} 14... Be7 {[%clk
1:06:12]} 15. Ng3 {[%clk 1:17:04]} 15... Qg6 {[%clk 1:05:37]} 16. f4 {[%clk
1:00:19]} 16... Rg8 {[%clk 1:02:28]} 17. Qd1 {[%clk 0:56:31]} 17... Kd7 {[%clk
1:00:36]} 18. f5 {[%clk 0:56:51]} 18... Qg7 {[%clk 1:00:05]} 19. Be3 {[%clk
0:56:51]} 19... b5 {[%clk 0:56:24]} 20. b3 {[%clk 0:56:33]} 20... Nd8 {[%clk
0:53:15]} 21. Qf3 {[%clk 0:56:40]} 21... Qf7 {[%clk 0:43:20]} 22. Rab1 {[%clk
0:55:30]} 22... Nc6 {[%clk 0:41:49]} 23. Ne4 {[%clk 0:52:01]} 23... h5 {[%clk
0:39:11]} 24. Nc3 {[%clk 0:51:34]} 24... b4 {[%clk 0:34:56]} 25. Ne4 {[%clk
0:51:52]} 25... Bf8 {[%clk 0:32:58]} 26. Qe2 {[%clk 0:50:01]} 26... Nd4 {[%clk
0:32:33]} 27. Bxd4 {[%clk 0:50:26]} 27... cxd4 {[%clk 0:32:28]} 28. Qf3 {[%clk
0:49:26]} 28... Bh6 {[%clk 0:32:19]} 29. h3 {[%clk 0:48:25]} 29... Be3+ {[%clk
0:31:06]} 30. Kh1 {[%clk 0:48:48]} 30... Rg7 {[%clk 0:28:23]} 31. Rb2 {[%clk
0:48:46]} 31... Ke7 {[%clk 0:22:21]} 32. Rc2 {[%clk 0:48:34]} 32... Qe8 {[%clk
0:19:02]} 33. Ra1 {[%clk 0:47:02]} 33... a5 {[%clk 0:18:59]} 34. Ng3 {[%clk
0:24:15]} 34... h4 {[%clk 0:18:25]} 35. Nf1 {[%clk 0:23:13]} 35... Bf4 {[%clk
0:17:25]} 36. Qd5 {[%clk 0:23:32]} 36... Qd7 {[%clk 0:17:12]} 37. Qxa5 {[%clk
0:20:50]} 37... e4 {[%clk 0:12:19]} 38. dxe4 {[%clk 0:18:32]} 38... d3 {[%clk
0:11:56]} 39. Rf2 {[%clk 0:18:45]} 39... Be5 {[%clk 0:12:06]} 40. Rd1 {[%clk
0:18:51]} 40... Bd4 {[%clk 0:12:18]} 41. Rf3 {[%clk 0:15:22]} 41... Rbg8 {[%clk
0:12:20]} 42. g4 {[%clk 0:12:43]} 42... hxg3 {[%clk 0:12:32]} 43. Kg2 {[%clk
0:13:03]} 43... Qb7 {[%clk 0:12:20]} 44. Qd5 {[%clk 0:11:53]} 44... Qxd5 {[%clk
0:11:33]} 45. exd5 {[%clk 0:12:19]} 45... Bf2 {[%clk 0:10:47]} 46. Rdxd3 {[%clk
0:11:25]} 46... Ra8 {[%clk 0:10:57]} 47. Nxg3 {[%clk 0:09:28]} 47... Bxg3 {[%clk
0:11:08]} 48. Rxg3 {[%clk 0:09:38]} 48... Rxa2+ {[%clk 0:11:27]} 49. Kf3 {[%clk
0:10:05]} 49... Rxg3+ {[%clk 0:11:39]} 50. Kxg3 {[%clk 0:10:24]} 50... Rc2
{[%clk 0:11:55]} 51. Rf3 {[%clk 0:10:22]} 51... Rc3 {[%clk 0:12:05]} 52. Kf4
{[%clk 0:10:22]} 52... Rc1 {[%clk 0:12:13]} 53. Rg3 {[%clk 0:07:57]} 53... Rf1+
{[%clk 0:12:14]} 54. Kg4 {[%clk 0:08:19]} 54... Re1 {[%clk 0:12:18]} 55. Kh5
{[%clk 0:06:23]} 55... Kf7 {[%clk 0:12:33]} 56. Rf3 {[%clk 0:05:41]} 56... Re4
{[%clk 0:12:24]} 57. h4 {[%clk 0:03:33]} 57... Rd4 {[%clk 0:12:32]} 58. Re3
{[%clk 0:03:17]} 58... Rf4 {[%clk 0:12:52]} 59. Re6 {[%clk 0:02:50]} 59... Rf3
{[%clk 0:12:36]} 60. Rxd6 {[%clk 0:03:02]} 60... Rxb3 {[%clk 0:12:38]} 61. Rd7+
{[%clk 0:03:11]} 61... Ke8 {[%clk 0:12:38]} 62. Rb7 {[%clk 0:03:38]} 62... Rb1
{[%clk 0:12:35]} 63. Kg6 {[%clk 0:03:56]} 63... b3 {[%clk 0:12:19]} 64. Kxf6
{[%clk 0:04:19]} 64... b2 {[%clk 0:11:44]} 65. h5 {[%clk 0:04:18]} 65... Rh1
{[%clk 0:11:27]} 66. Rxb2 {[%clk 0:04:43]} 66... Rxh5 {[%clk 0:11:53]} 67. Ke6
{[%clk 0:05:01]} 67... Kf8 {[%clk 0:11:33]} 68. f6 {[%clk 0:05:14]} 68... Kg8
{[%clk 0:11:43]} 69. f7+ {[%clk 0:05:33]} 69... Kg7 {[%clk 0:12:09]} 70. Rg2+
{[%clk 0:05:57]} 70... Kh7 {[%clk 0:12:16]} 1-0

[Variant "Standard"]
[Site "Europe Echecs"]

[Event "Championnat du monde jeunes U10F"]
[Date "2024.11.26"]
[White "Peng, Jingyi(GD)"]
[Black "Zhang, Weiai"]
[WhiteElo "1720"]
[BlackElo "1488"]
[Round "11.8"]
[Result "1-0"]
[TimeControl "5400+30"]

1. Nf3 {[%clk 1:30:58]} 1... d5 {[%clk 1:30:54]} 2. c4 {[%clk 1:31:25]} 2... e6
{[%clk 1:31:18]} 3. g3 {[%clk 1:31:51]} 3... Nf6 {[%clk 1:31:43]} 4. Bg2 {[%clk
1:32:18]} 4... Be7 {[%clk 1:32:06]} 5. O-O {[%clk 1:32:45]} 5... O-O {[%clk
1:32:30]} 6. d4 {[%clk 1:33:13]} 6... dxc4 {[%clk 1:32:51]} 7. Qc2 {[%clk
1:33:38]} 7... a6 {[%clk 1:33:16]} 8. a4 {[%clk 1:34:00]} 8... Bd7 {[%clk
1:33:39]} 9. Qxc4 {[%clk 1:34:13]} 9... b5 {[%clk 1:31:15]} 10. Qc2 {[%clk
1:33:39]} 10... Bc6 {[%clk 1:25:20]} 11. axb5 {[%clk 1:32:22]} 11... axb5 {[%clk
1:24:37]} 12. Rxa8 {[%clk 1:32:47]} 12... Bxa8 {[%clk 1:25:02]} 13. Bf4 {[%clk
1:09:15]} 13... Nd5 {[%clk 1:21:02]} 14. e4 {[%clk 1:07:58]} 14... Nxf4 {[%clk
1:14:37]} 15. gxf4 {[%clk 1:08:23]} 15... Bd6 {[%clk 1:09:40]} 16. e5 {[%clk
0:59:59]} 16... Be7 {[%clk 1:09:45]} 17. Rd1 {[%clk 0:58:18]} 17... Na6 {[%clk
1:04:14]} 18. Nc3 {[%clk 0:55:03]} 18... b4 {[%clk 0:51:46]} 19. Ne2 {[%clk
0:47:22]} 19... Bd5 {[%clk 0:46:58]} 20. Ng3 {[%clk 0:45:09]} 20... Qa8 {[%clk
0:33:18]} 21. Qe2 {[%clk 0:44:30]} 21... c5 {[%clk 0:31:13]} 22. f5 {[%clk
0:43:03]} 22... c4 {[%clk 0:25:14]} 23. f6 {[%clk 0:39:06]} 23... gxf6 {[%clk
0:23:07]} 24. Nh5 {[%clk 0:38:06]} 24... f5 {[%clk 0:20:16]} 25. Qe3 {[%clk
0:32:23]} 25... Kh8 {[%clk 0:17:59]} 26. Ng5 {[%clk 0:07:57]} 26... Qd8 {[%clk
0:09:33]} 27. h4 {[%clk 0:00:51]} 27... Bxg2 28. Kxg2 {[%clk 0:01:14]} 28... Rg8
{[%clk 0:09:11]} 29. f4 {[%clk 0:00:49]} 29... Qd5+ {[%clk 0:05:44]} 30. Kf2
{[%clk 0:00:52]} 30... Bxg5 {[%clk 0:03:15]} 31. hxg5 {[%clk 0:01:06]} 31... Qe4
{[%clk 0:02:15]} 32. Qxe4 {[%clk 0:00:47]} 32... fxe4 {[%clk 0:02:39]} 33. Nf6
{[%clk 0:01:12]} 33... Rg7 {[%clk 0:01:34]} 34. Ra1 {[%clk 0:01:31]} 34... Nc7
{[%clk 0:01:07]} 35. Ra7 {[%clk 0:01:59]} 35... e3+ {[%clk 0:00:49]} 36. Ke2
{[%clk 0:02:20]} 1-0

[Variant "Standard"]
[Site "Europe Echecs"]

[Event "Championnat du monde jeunes U10F"]
[Date "2024.11.26"]
[White "Norkulova, Malika"]
[Black "Cetin, Beren"]
[WhiteElo "1480"]
[BlackElo "1658"]
[Round "11.9"]
[Result "1/2-1/2"]
[TimeControl "5400+30"]

1. d4 {[%clk 1:21:47]} 1... Nf6 {[%clk 1:30:39]} 2. Nf3 {[%clk 1:22:11]} 2... e6
{[%clk 1:31:02]} 3. g3 {[%clk 1:22:37]} 3... d5 {[%clk 1:31:27]} 4. Bg2 {[%clk
1:23:01]} 4... Bd6 {[%clk 1:31:13]} 5. O-O {[%clk 1:23:21]} 5... O-O {[%clk
1:31:40]} 6. c4 {[%clk 1:23:13]} 6... c6 {[%clk 1:30:40]} 7. Nfd2 {[%clk
1:23:33]} 7... Nbd7 {[%clk 1:30:53]} 8. Nc3 {[%clk 1:23:55]} 8... Bb4 {[%clk
1:30:11]} 9. e4 {[%clk 1:22:05]} 9... Bxc3 {[%clk 1:30:04]} 10. bxc3 {[%clk
1:22:25]} 10... dxe4 {[%clk 1:29:19]} 11. Nxe4 {[%clk 1:22:48]} 11... Nxe4
{[%clk 1:26:46]} 12. Bxe4 {[%clk 1:23:11]} 12... f5 {[%clk 1:26:21]} 13. Bg2
{[%clk 1:21:53]} 13... Nb6 {[%clk 1:23:48]} 14. Qb3 {[%clk 1:21:28]} 14... Qf6
{[%clk 1:19:35]} 15. Bf4 {[%clk 1:20:42]} 15... Nd7 {[%clk 1:19:00]} 16. Bd6
{[%clk 1:17:03]} 16... Re8 {[%clk 1:17:23]} 17. f4 {[%clk 1:12:16]} 17... h5
{[%clk 1:12:56]} 18. Qd1 {[%clk 1:04:34]} 18... Qg6 {[%clk 1:11:19]} 19. Bf3
{[%clk 0:53:50]} 19... Nf6 {[%clk 1:11:44]} 20. Kh1 {[%clk 0:51:42]} 20... Kf7
{[%clk 1:02:59]} 21. Be5 {[%clk 0:40:11]} 21... Ng4 {[%clk 0:50:45]} 22. h3
{[%clk 0:39:03]} 22... Rh8 {[%clk 0:40:48]} 23. hxg4 {[%clk 0:32:29]} 23...
hxg4+ {[%clk 0:40:13]} 24. Kg2 {[%clk 0:32:53]} 24... gxf3+ {[%clk 0:40:32]} 25.
Qxf3 {[%clk 0:33:13]} 25... Bd7 {[%clk 0:39:20]} 26. Rab1 {[%clk 0:29:40]} 26...
b6 {[%clk 0:38:08]} 27. c5 {[%clk 0:28:35]} 27... b5 {[%clk 0:34:20]} 28. Rh1
{[%clk 0:25:05]} 28... a6 {[%clk 0:34:08]} 29. Qe2 {[%clk 0:24:21]} 1/2-1/2

[Variant "Standard"]
[Site "Europe Echecs"]

[Event "Championnat du monde jeunes U10F"]
[Date "2024.11.26"]
[White "Mukhorina, Mariya Dm"]
[Black "Jaksa, Ema"]
[WhiteElo "1567"]
[BlackElo "1635"]
[Round "11.10"]
[Result "0-1"]
[TimeControl "5400+30"]

1. e4 {[%clk 1:30:50]} 1... e5 {[%clk 1:30:34]} 2. Nf3 {[%clk 1:31:12]} 2... Nc6
{[%clk 1:30:25]} 3. Nc3 {[%clk 1:31:22]} 3... Nf6 {[%clk 1:30:31]} 4. d4 {[%clk
1:31:32]} 4... exd4 {[%clk 1:30:10]} 5. Nxd4 {[%clk 1:31:40]} 5... Bb4 {[%clk
1:29:34]} 6. Nxc6 {[%clk 1:31:53]} 6... bxc6 {[%clk 1:29:55]} 7. Bd3 {[%clk
1:32:20]} 7... d5 {[%clk 1:29:14]} 8. exd5 {[%clk 1:32:16]} 8... cxd5 {[%clk
1:29:32]} 9. O-O {[%clk 1:32:20]} 9... O-O {[%clk 1:28:55]} 10. Bg5 {[%clk
1:32:30]} 10... Be6 {[%clk 1:27:06]} 11. Qf3 {[%clk 1:30:45]} 11... h6 {[%clk
1:24:43]} 12. Bxf6 {[%clk 1:27:07]} 12... Qxf6 {[%clk 1:25:05]} 13. Qxf6 {[%clk
1:27:30]} 13... gxf6 {[%clk 1:25:28]} 14. Ne2 {[%clk 1:27:34]} 14... Rab8 {[%clk
1:22:04]} 15. c3 {[%clk 1:25:26]} 15... Bd6 {[%clk 1:20:28]} 16. b4 {[%clk
1:25:43]} 16... a5 {[%clk 1:08:17]} 17. a3 {[%clk 1:23:52]} 17... c5 {[%clk
1:06:51]} 18. bxc5 {[%clk 1:20:24]} 18... Bxc5 {[%clk 1:07:05]} 19. Nd4 {[%clk
1:20:16]} 19... Bxd4 {[%clk 1:05:00]} 20. cxd4 {[%clk 1:20:45]} 20... Rb3 {[%clk
1:04:00]} 21. Rfd1 {[%clk 1:19:03]} 21... Rc8 {[%clk 1:01:44]} 22. a4 {[%clk
1:17:48]} 22... Bd7 {[%clk 0:59:36]} 23. Kf1 {[%clk 1:07:19]} 23... Rb4 {[%clk
0:54:24]} 24. Ra3 {[%clk 1:05:26]} 24... Kg7 {[%clk 0:51:02]} 25. Ke2 {[%clk
0:59:18]} 25... Rxd4 {[%clk 0:46:08]} 26. Ke3 {[%clk 0:53:34]} 26... Rb4 {[%clk
0:44:02]} 27. f3 {[%clk 0:51:39]} 27... Re8+ {[%clk 0:40:09]} 28. Kf2 {[%clk
0:50:52]} 28... Rb2+ {[%clk 0:39:25]} 29. Kg3 {[%clk 0:50:52]} 29... h5 {[%clk
0:38:33]} 30. Bf1 {[%clk 0:45:45]} 30... Be6 {[%clk 0:35:32]} 31. Rc3 {[%clk
0:39:12]} 31... Reb8 {[%clk 0:32:41]} 32. Bb5 {[%clk 0:38:57]} 32... h4+ {[%clk
0:32:33]} 33. Kf4 {[%clk 0:38:07]} 33... Rxg2 {[%clk 0:32:17]} 34. Rc7 {[%clk
0:36:23]} 34... Rxh2 {[%clk 0:28:32]} 35. Rg1+ {[%clk 0:33:46]} 35... Kf8 {[%clk
0:27:30]} 36. Ke3 {[%clk 0:29:50]} 36... h3 {[%clk 0:24:51]} 37. f4 {[%clk
0:27:15]} 37... Rb2 {[%clk 0:24:04]} 38. Kf3 {[%clk 0:24:40]} 38... h2 {[%clk
0:22:52]} 39. Rh1 {[%clk 0:24:27]} 39... Kg7 {[%clk 0:22:27]} 40. Kg3 {[%clk
0:24:16]} 40... Rh8 {[%clk 0:22:37]} 41. Bf1 {[%clk 0:24:05]} 41... d4 {[%clk
0:22:14]} 42. Rc5 {[%clk 0:24:10]} 42... d3 {[%clk 0:21:52]} 43. f5 {[%clk
0:24:37]} 43... d2 {[%clk 0:21:42]} 44. Be2 {[%clk 0:24:20]} 44... Bb3 {[%clk
0:19:34]} 45. Rb5 {[%clk 0:23:53]} 45... Rc8 {[%clk 0:02:43]} 46. Bd1 {[%clk
0:09:53]} 46... Rc1 {[%clk 0:02:43]} 47. Kxh2 {[%clk 0:09:08]} 47... Bxd1 {[%clk
0:01:59]} 48. Rg1+ {[%clk 0:06:27]} 48... Bg4 {[%clk 0:01:14]} 49. Rxg4+ {[%clk
0:05:02]} 49... Kh6 {[%clk 0:01:28]} 50. Rxb2 {[%clk 0:03:36]} 50... d1=Q {[%clk
0:01:47]} 51. Rbg2 {[%clk 0:03:12]} 51... Qh1+ {[%clk 0:02:06]} 52. Kg3 {[%clk
0:03:41]} 52... Rc3+ {[%clk 0:02:14]} 53. Kf2 {[%clk 0:04:09]} 53... Rc2+ {[%clk
0:02:23]} 54. Kf3 {[%clk 0:04:16]} 54... Qf1+ {[%clk 0:02:41]} 55. Ke3 {[%clk
0:04:22]} 55... Rc3+ {[%clk 0:02:51]} 56. Kd2 {[%clk 0:04:32]} 56... Qd3+ {[%clk
0:03:07]} 57. Ke1 {[%clk 0:04:39]} 57... Rc1+ {[%clk 0:03:29]} 58. Kf2 {[%clk
0:05:09]} 58... Rf1# {[%clk 0:03:48]} 0-1

[Variant "Standard"]
[Site "Europe Echecs"]

[Event "Championnat du monde jeunes U10F"]
[Date "2024.11.26"]
[White "Sun, Yucan(SD)"]
[Black "Rosset, Anna"]
[WhiteElo "1642"]
[BlackElo "1814"]
[Round "11.11"]
[Result "0-1"]
[TimeControl "5400+30"]

1. e4 {[%clk 1:30:58]} 1... e6 {[%clk 1:30:52]} 2. d4 {[%clk 1:31:22]} 2... d5
{[%clk 1:31:18]} 3. Nc3 {[%clk 1:31:37]} 3... Bb4 {[%clk 1:31:29]} 4. Ne2 {[%clk
1:31:38]} 4... dxe4 {[%clk 1:30:15]} 5. a3 {[%clk 1:31:21]} 5... Bxc3+ {[%clk
1:30:08]} 6. Nxc3 {[%clk 1:31:43]} 6... Nc6 {[%clk 1:28:08]} 7. Bb5 {[%clk
1:31:54]} 7... Ne7 {[%clk 1:25:24]} 8. Be3 {[%clk 1:30:07]} 8... O-O {[%clk
1:23:41]} 9. Qd2 {[%clk 1:27:11]} 9... Nd5 {[%clk 1:17:25]} 10. Nxe4 {[%clk
1:18:18]} 10... Qh4 {[%clk 1:09:52]} 11. Ng3 {[%clk 1:12:31]} 11... h6 {[%clk
1:03:51]} 12. O-O-O {[%clk 1:07:58]} 12... a6 {[%clk 1:01:42]} 13. Bd3 {[%clk
1:01:43]} 13... b5 {[%clk 1:00:04]} 14. c3 {[%clk 0:58:44]} 14... Rb8 {[%clk
0:56:25]} 15. Ne2 {[%clk 0:57:27]} 15... a5 {[%clk 0:53:37]} 16. g4 {[%clk
0:51:31]} 16... b4 {[%clk 0:46:45]} 17. a4 {[%clk 0:49:51]} 17... bxc3 {[%clk
0:45:32]} 18. Nxc3 {[%clk 0:49:44]} 18... Ncb4 {[%clk 0:41:53]} 19. Nxd5 {[%clk
0:42:55]} 19... exd5 {[%clk 0:38:32]} 20. g5 {[%clk 0:37:16]} 20... hxg5 {[%clk
0:36:29]} 21. f3 {[%clk 0:28:55]} 21... Qh6 {[%clk 0:35:54]} 22. Kb1 {[%clk
0:27:46]} 22... Qc6 {[%clk 0:35:06]} 23. Bb5 {[%clk 0:14:02]} 23... Bf5+ {[%clk
0:33:24]} 24. Ka1 {[%clk 0:14:14]} 24... Nc2+ {[%clk 0:31:48]} 25. Ka2 {[%clk
0:12:55]} 25... Rxb5 {[%clk 0:26:10]} 26. axb5 {[%clk 0:12:04]} 26... Qxb5
{[%clk 0:26:31]} 27. b3 {[%clk 0:08:38]} 27... Re8 {[%clk 0:26:02]} 28. Rhe1
{[%clk 0:06:24]} 28... Nxe1 {[%clk 0:25:53]} 29. Rxe1 {[%clk 0:06:08]} 29... a4
{[%clk 0:25:08]} 30. Qc3 {[%clk 0:05:34]} 30... Rb8 {[%clk 0:24:52]} 31. Bxg5
{[%clk 0:02:56]} 31... axb3+ {[%clk 0:24:59]} 32. Kb2 {[%clk 0:03:22]} 32... Bc2
{[%clk 0:20:43]} 33. Qxc7 {[%clk 0:03:04]} 33... Ra8 {[%clk 0:20:06]} 34. Re7
{[%clk 0:01:39]} 34... Qd3 {[%clk 0:18:20]} 0-1

[Variant "Standard"]
[Site "Europe Echecs"]